fUSD/lending_fUSD_20251201
["ID","MTS","AMOUNT","RATE_DAILY","PERIOD"]
[395282408,1764587438108,-253.87659314,0.0001524,2]
[395282409,1764587438118,-342.62771292,0.0001524,2]
[395282410,1764587438128,-500.0,0.0001524,2]
[395282411,1764587438137,-75.90404264,0.0001524,2]
[395282412,1764587438150,-226.44936843,0.0001524,2]
[395282413,1764587438159,-461.98672521,0.0001524,2]
[395282414,1764587438169,-2113.70874182,0.00015242,2]
[395282415,1764587438180,-962.19129717,0.00015242,2]
[395282416,1764587438191,-17346.8,0.00015242,2]
[395282417,1764587438203,-419.075,0.00015242,2]
[395282418,1764587438215,-1051.40271838,0.00015242,2]
[395282419,1764587438235,-2473.65091241,0.00015242,2]
[395282421,1764587438247,-1000.0,0.00015242,2]
[395282422,1764587438258,-4469.34245051,0.00015242,2]
[395282423,1764587439942,-374.07477111,0.0001524,2]
[395282424,1764587439954,-128.44442911,0.0001524,2]
[395282425,1764587439963,-215.63597753,0.00015242,2]
[395282427,1764587440150,-838.48,0.00015242,2]
[395282428,1764587440162,-1025.34456749,0.00015242,2]
[395282429,1764587440173,-1342.59850937,0.00015242,2]
[395282436,1764587442979,-6033.32480962,0.00015242,2]
[395282437,1764587442991,-268895.31464701,0.00015242,2]
[395282438,1764587443004,-564.86171468,0.00015242,2]
[395282439,1764587443031,-1770.4504776,0.00015242,2]
[395282440,1764587443087,-735.24608787,0.00015242,2]
[395282441,1764587443149,-1041.0,0.00015242,2]
[395282442,1764587443197,-619.94646908,0.00015242,2]
[395282447,1764587445991,-6314.21812731,0.00015242,2]
[395282448,1764587446002,-53045.11791045,0.00015242,2]
[395282449,1764587446048,-466.81370507,0.00015242,2]
[395282450,1764587446059,-22890.6252674,0.00015242,2]
[395282451,1764587446070,-20253.0647326,0.00015242,2]
[395282452,1764587446102,-1384.22631774,0.00015242,2]
[395282453,1764587446113,-199212.31497555,0.00015242,2]
[395282454,1764587446157,-200.0,0.00014899,2]
[395282455,1764587446166,-8996.1556,0.00015242,2]
[395282462,1764587846064,164.26,0.00011579,2]
[395282500,1764588135546,987.02951012,0.00012009,2]
[395282502,1764588211150,1006.78,6.827e-05,2]
[395282503,1764588211344,1006.78,7.187e-05,2]
[395282504,1764588211528,1006.78,7.546e-05,2]
[395282505,1764588211736,1006.78,7.905e-05,2]
[395282506,1764588211935,1006.78,8.265e-05,2]
[395282507,1764588212143,1006.78,8.624e-05,2]
[395282508,1764588212373,1006.78,8.983e-05,2]
[395282509,1764588212594,1006.78,9.343e-05,2]
[395282510,1764588212796,1006.78,9.702e-05,2]
[395282511,1764588212991,1006.78,0.00010061,2]
[395282512,1764588213406,1006.78,0.00010421,2]
[395282513,1764588213610,1006.78,0.0001078,2]
[395282514,1764588213803,1006.78,0.00011139,2]
[395282515,1764588214005,1006.78,0.00011499,2]
[395282516,1764588214192,1006.78,0.00011858,2]
[395282533,1764588518698,3842.69067763,0.0001,2]
[395282546,1764588632130,-1006.78,0.00012217,2]
[395282547,1764588632140,-250.0,0.00012397,2]
[395282548,1764588632149,-1006.78,0.00012577,2]
[395282549,1764588632165,-250.0,0.00012642,2]
[395282550,1764588632179,-192.0038528,0.00012672,2]
[395282551,1764588632189,-1200.0,0.00012871,2]
[395282552,1764588632198,-604.0,0.00012872,2]
[395282553,1764588632208,-300.0,0.00012872,2]
[395282554,1764588632217,-28.05062528,0.00012872,2]
[395282555,1764588632230,-271.94937472,0.00012872,2]
[395282556,1764588632240,-150.0,0.00012872,2]
[395282557,1764588632251,-500.0,0.00012873,2]
[395282558,1764588632261,-500.0,0.00012873,2]
[395282559,1764588632271,-283.83511784,0.00012873,2]
[395282560,1764588632281,-500.0,0.00012873,2]
[395282561,1764588632291,-517.94813083,0.00012873,2]
[395282562,1764588632301,-200.93170134,0.00012873,2]
[395282563,1764588632311,-500.0,0.00012873,2]
[395282564,1764588632320,-500.0,0.00012873,2]
[395282565,1764588632330,-500.0,0.00012873,2]
[395282566,1764588632340,-500.0,0.00012873,2]
[395282567,1764588632350,-500.0,0.00012873,2]
[395282568,1764588632360,-500.0,0.00012873,2]
[395282569,1764588632370,-500.0,0.00012873,2]
[395282570,1764588632380,-512.88987894,0.00012873,2]
[395282571,1764588632391,-500.0,0.00012873,2]
[395282572,1764588632400,-1006.78,0.00012936,2]
[395282573,1764588632410,-1006.78,0.00013295,2]
[395282574,1764588632420,-1500.0,0.00013326,2]
[395282575,1764588632430,-1000.0,0.00013392,2]
[395282576,1764588632440,-1000.0,0.00013409,2]
[395282577,1764588632450,-500.0,0.00013409,2]
[395282578,1764588632460,-500.0,0.00013409,2]
[395282579,1764588632470,-500.0,0.00013409,2]
[395282580,1764588632480,-500.0,0.00013409,2]
[395282581,1764588632490,-562.73829746,0.00013409,2]
[395282582,1764588632500,-42549.03,0.0001341,2]
[395282583,1764588632510,-505.34047278,0.00013421,2]
[395282584,1764588632519,-1000.0,0.00013421,2]
[395282585,1764588632529,-1000.0,0.00013421,2]
[395282587,1764588632539,-1000.0,0.00013421,2]
[395282588,1764588632553,-1000.0,0.00013421,2]
[395282589,1764588632564,-1000.0,0.00013421,2]
[395282590,1764588632573,-688.49303594,0.00013421,2]
[395282591,1764588632583,-1000.0,0.00013421,2]
[395282592,1764588632593,-250.0,0.00013439,2]
[395282593,1764588632615,-500.0,0.00013447,2]
[395282594,1764588632625,-1006.78,0.00013655,2]
[395282595,1764588632637,-1000.0,0.00013699,2]
[395282596,1764588632647,-166.66,0.00013699,2]
[395282597,1764588632657,-1736.0,0.00013914,2]
[395282598,1764588632668,-150.0,0.00013921,2]
[395282599,1764588632678,-1000.0,0.00013968,2]
[395282600,1764588632688,-1000.0,0.00013968,2]
[395282601,1764588632699,-501.41144813,0.00013968,2]
[395282602,1764588632709,-166.66,0.00013974,2]
[395282603,1764588632719,-187.47,0.00013981,2]
[395282604,1764588632728,-413.11,0.00014107,2]
[395282605,1764588632739,-213.82410445,0.00014158,2]
[395282606,1764588632748,-514.88916939,0.00014158,2]
[395282607,1764588632758,-163.67769845,0.00014158,2]
[395282608,1764588632767,-1121.0,0.00014158,2]
[395282609,1764588632777,-500.0,0.00014245,2]
[395282610,1764588632786,-200.0,0.00014245,2]
[395282611,1764588632795,-200.0,0.00014245,2]
[395282612,1764588632805,-500.0,0.00014245,2]
[395282613,1764588632814,-500.0,0.00014245,2]
[395282614,1764588632824,-500.0,0.00014245,2]
[395282615,1764588632833,-500.0,0.00014245,2]
[395282616,1764588632846,-500.0,0.00014245,2]
[395282617,1764588632855,-500.0,0.00014245,2]
[395282618,1764588632865,-500.0,0.00014245,2]
[395282619,1764588632875,-500.0,0.00014245,2]
[395282620,1764588632884,-500.0,0.00014245,2]
[395282621,1764588632894,-500.0,0.00014245,2]
[395282622,1764588632903,-500.0,0.00014245,2]
[395282623,1764588632912,-500.0,0.00014245,2]
[395282624,1764588632926,-500.0,0.00014245,2]
[395282625,1764588632936,-500.0,0.00014245,2]
[395282626,1764588632946,-200.0,0.00014245,2]
[395282627,1764588632955,-151.0,0.00014245,2]
[395282628,1764588632965,-151.0,0.00014245,2]
[395282629,1764588632975,-151.0,0.00014245,2]
[395282630,1764588633464,-151.0,0.00014245,2]
[395282631,1764588633505,-151.0,0.00014245,2]
[395282632,1764588633517,-241.30382186,0.00014245,2]
[395282633,1764588633526,-151.0,0.00014245,2]
[395282634,1764588633536,-151.0,0.00014245,2]
[395282635,1764588633547,-151.0,0.00014245,2]
[395282636,1764588633556,-151.0,0.00014245,2]
[395282637,1764588633566,-151.0,0.00014245,2]
[395282638,1764588633576,-151.0,0.00014245,2]
[395282639,1764588633586,-151.0,0.00014245,2]
[395282640,1764588633595,-151.0,0.00014245,2]
[395282641,1764588633606,-151.0,0.00014245,2]
[395282642,1764588633615,-151.0,0.00014245,2]
[395282643,1764588633625,-500.0,0.00014245,2]
[395282644,1764588633635,-151.0,0.00014245,2]
[395282645,1764588633644,-500.0,0.00014245,2]
[395282646,1764588633653,-500.0,0.00014245,2]
[395282647,1764588633663,-500.0,0.00014245,2]
[395282648,1764588633672,-500.0,0.00014245,2]
[395282649,1764588633682,-500.0,0.00014245,2]
[395282650,1764588633691,-500.0,0.00014245,2]
[395282651,1764588633700,-151.0,0.00014245,2]
[395282652,1764588633710,-500.0,0.00014245,2]
[395282653,1764588633722,-151.0,0.00014245,2]
[395282654,1764588633731,-500.0,0.00014245,2]
[395282655,1764588633740,-500.0,0.00014245,2]
[395282656,1764588633750,-500.0,0.00014245,2]
[395282657,1764588633760,-337.0016284,0.00014245,2]
[395282658,1764588633770,-166.66,0.00014249,2]
[395282659,1764588633780,-20384.11,0.00014254,2]
[395282660,1764588633789,-1617.0,0.00014465,2]
[395282661,1764588633799,-1000.0,0.00014493,2]
[395282662,1764588633808,-16319.08,0.00014494,2]
[395282663,1764588633819,-1831.0,0.00014494,2]
[395282664,1764588633829,-4081.46,0.00014504,2]
[395282665,1764588633838,-999.99,0.00014504,2]
[395282666,1764588633847,-9723.92,0.00014504,2]
[395282667,1764588633856,-9999.99,0.00014504,2]
[395282668,1764588633866,-150.99,0.00014504,2]
[395282669,1764588633876,-1306.0,0.00014523,2]
[395282670,1764588633888,-166.66,0.00014525,2]
[395282671,1764588633898,-185.12,0.00014541,2]
[395282672,1764588633907,-1937.0,0.00014551,2]
[395282673,1764588633917,-1590.0,0.0001458,2]
[395282674,1764588633926,-845.0,0.00014609,2]
[395282675,1764588633936,-1143.0,0.00014638,2]
[395282676,1764588633945,-500.0,0.00014793,2]
[395282677,1764588633955,-58.75033664,0.00014793,2]
[395282678,1764588633968,-141.24966336,0.00014793,2]
[395282679,1764588633978,-200.0,0.00014793,2]
[395282680,1764588633988,-222.76990664,0.00014799,2]
[395282681,1764588633999,-166.66,0.000148,2]
[395282682,1764588634012,-9074.70661919,0.00014989,2]
[395282683,1764588634022,-1807.7042,0.0001504,2]
[395282684,1764588634032,-4354.36365439,0.00015042,2]
[395282685,1764588634041,-160.20928469,0.00015042,2]
[395282686,1764588634052,-1000.0,0.00015066,2]
[395282687,1764588634061,-236.31,0.00015068,2]
[395282688,1764588634071,-166.66,0.00015076,2]
[395282689,1764588634080,-151.0,0.00015137,2]
[395282690,1764588634089,-151.0,0.00015137,2]
[395282691,1764588634105,-51370.38427626,0.0001514,2]
[395282692,1764588634122,-68921.16027483,0.0001514,2]
[395282693,1764588634134,-192547.27562423,0.0001514,2]
[395282694,1764588634145,-820.7253007,0.0001514,2]
[395282695,1764588634156,-1538.8427499,0.0001514,2]
[395282702,1764588638280,-1017.2224,0.00012477,2]
[395282703,1764588638654,-358.43835084,0.00012873,2]
[395282704,1764588638669,-141.56164916,0.00012873,2]
[395282705,1764588638679,-1000.0,0.00013421,2]
[395282706,1764588638689,-1027.6186458,0.0001514,2]
[395282707,1764588638699,-24728.10081384,0.0001514,2]
[395282708,1764588638711,-1323.45921772,0.0001514,2]
[395282709,1764588638901,-171329.35607042,0.0001514,2]
[395282710,1764588638914,-246393.0770263,0.0001514,2]
[395282711,1764588638924,-6652.7975,0.00015142,2]
[395282712,1764588638934,-9074.70661917,0.00015201,2]
[395282713,1764588638943,-500.0,0.00015227,2]
[395282714,1764588638953,-211.27198378,0.0001523,2]
[395282715,1764588638963,-754.63,0.00015233,2]
[395282716,1764588638973,-151.0,0.00015238,2]
[395282717,1764588638983,-105843.115245,0.0001524,2]
[395282718,1764588638992,-7205.83952261,0.0001524,2]
[395282719,1764588639009,-58374.61769882,0.0001524,2]
[395282720,1764588639022,-36156.2999997,0.0001524,2]
[395282721,1764588639039,-1388.74441289,0.0001524,2]
[395282722,1764588639052,-6304.94406498,0.0001524,2]
[395282723,1764588639063,-17441.8262951,0.0001524,2]
[395282724,1764588639075,-500.0,0.00015241,2]
[395282725,1764588639087,-500.0,0.00015241,2]
[395282726,1764588639098,-950.24,0.00015241,2]
[395282727,1764588639109,-950.24,0.00015241,2]
[395282728,1764588639124,-950.24,0.00015241,2]
[395282729,1764588639135,-950.24,0.00015241,2]
[395282730,1764588639146,-950.24,0.00015241,2]
[395282731,1764588639161,-950.24,0.00015241,2]
[395282732,1764588639172,-950.24,0.00015241,2]
[395282733,1764588639183,-950.24,0.00015241,2]
[395282734,1764588639194,-950.24,0.00015241,2]
[395282735,1764588639204,-950.24,0.00015241,2]
[395282736,1764588639215,-950.24,0.00015241,2]
[395282737,1764588639225,-950.24,0.00015241,2]
[395282738,1764588639237,-950.24,0.00015241,2]
[395282739,1764588639247,-950.24,0.00015241,2]
[395282740,1764588639259,-950.24,0.00015241,2]
[395282741,1764588639268,-950.24,0.00015241,2]
[395282742,1764588639280,-950.24,0.00015241,2]
[395282743,1764588639291,-950.24,0.00015241,2]
[395282744,1764588639302,-950.24,0.00015241,2]
[395282745,1764588639312,-950.24,0.00015241,2]
[395282746,1764588639321,-950.24,0.00015241,2]
[395282747,1764588639331,-950.24,0.00015241,2]
[395282748,1764588639341,-950.24,0.00015241,2]
[395282749,1764588639352,-950.29022965,0.00015241,2]
[395282750,1764588639362,-187.72035735,0.00015242,2]
[395282751,1764588639371,-200.0,0.00015242,2]
[395282752,1764588639381,-151.0,0.00015242,2]
[395282753,1764588639390,-202.71317792,0.00015242,2]
[395282754,1764588639400,-832.0,0.00015242,2]
[395282755,1764588639409,-151.0,0.00015242,2]
[395282756,1764588639419,-151.0,0.00015242,2]
[395282757,1764588639428,-832.0,0.00015242,2]
[395282758,1764588639437,-832.0,0.00015242,2]
[395282759,1764588639447,-153.0,0.00015242,2]
[395282760,1764588639456,-153.0,0.00015242,2]
[395282761,1764588639466,-151.0,0.00015242,2]
[395282762,1764588639475,-4745.80302,0.00015242,2]
[395282763,1764588639484,-1250.0,0.00015242,2]
[395282764,1764588639494,-1250.0,0.00015242,2]
[395282765,1764588639503,-1250.0,0.00015242,2]
[395282766,1764588639511,-162.91638528,0.00015249,2]
[395282767,1764588639520,-4354.36365437,0.00015249,2]
[395282768,1764588639529,-682.18084871,0.0001525,2]
[395282769,1764588639538,-1000.0,0.0001525,2]
[395282770,1764588639547,-500.0,0.00015341,2]
[395282771,1764588639557,-200.0,0.00015341,2]
[395282772,1764588639567,-200.0,0.00015341,2]
[395282773,1764588639576,-4303.27989,0.00015342,2]
[395282774,1764588639585,-500.0,0.00015349,2]
[395282775,1764588639595,-500.0,0.00015349,2]
[395282776,1764588639604,-500.0,0.00015349,2]
[395282777,1764588639614,-200.0,0.0001535,2]
[395282778,1764588639624,-200.0,0.0001535,2]
[395282779,1764588639633,-170.29,0.00015387,2]
[395282780,1764588639649,-200.0,0.00015394,2]
[395282781,1764588639659,-9074.70661917,0.00015414,2]
[395282782,1764588639668,-999.0,0.00015447,3]
[395282783,1764588639678,-500.0,0.00015449,2]
[395282784,1764588639687,-500.0,0.00015449,2]
[395282785,1764588639696,-500.0,0.00015449,2]
[395282786,1764588639705,-500.0,0.00015449,2]
[395282787,1764588639715,-4354.36365437,0.00015456,2]
[395282788,1764588639724,-200.0,0.00015503,2]
[395282789,1764588639735,-200.0,0.00015503,2]
[395282790,1764588639744,-754.63,0.00015507,2]
[395282791,1764588639753,-200.0,0.00015548,2]
[395282792,1764588639762,-500.0,0.00015549,2]
[395282793,1764588639771,-500.0,0.00015549,2]
[395282794,1764588639781,-500.0,0.00015549,2]
[395282795,1764588639791,-229.27249885,0.00015549,2]
[395282796,1764588639800,-500.0,0.00015549,2]
[395282797,1764588639807,-500.0,0.00015549,2]
[395282798,1764588639815,-500.0,0.00015549,2]
[395282799,1764588639823,-500.0,0.00015549,2]
[395282800,1764588639831,-500.0,0.00015549,2]
[395282801,1764588639840,-500.0,0.00015549,2]
[395282802,1764588639849,-500.0,0.00015549,2]
[395282803,1764588639858,-500.0,0.00015549,2]
[395282804,1764588639867,-500.0,0.00015549,2]
[395282805,1764588639876,-500.0,0.00015549,2]
[395282806,1764588639885,-500.0,0.00015549,2]
[395282807,1764588639895,-500.0,0.00015549,2]
[395282808,1764588639904,-500.0,0.00015549,2]
[395282809,1764588639913,-500.0,0.00015549,2]
[395282810,1764588639923,-500.0,0.00015549,2]
[395282811,1764588639933,-500.0,0.00015549,2]
[395282812,1764588639943,-568.76021857,0.00015549,2]
[395282813,1764588639952,-500.0,0.00015549,2]
[395282814,1764588639962,-500.0,0.00015549,2]
[395282815,1764588639971,-500.0,0.00015549,2]
[395282816,1764588639981,-571.55421177,0.00015549,2]
[395282817,1764588639990,-639.66251844,0.00015549,2]
[395282818,1764588639999,-500.0,0.00015549,2]
[395282819,1764588640008,-500.0,0.00015549,2]
[395282820,1764588640019,-500.0,0.00015549,2]
[395282821,1764588640028,-500.0,0.00015549,2]
[395282822,1764588640038,-500.0,0.00015549,2]
[395282823,1764588640048,-500.0,0.00015549,2]
[395282824,1764588640058,-500.0,0.00015549,2]
[395282825,1764588640067,-500.0,0.00015549,2]
[395282826,1764588640077,-500.0,0.00015549,2]
[395282827,1764588640087,-564.2,0.00015549,2]
[395282828,1764588640102,-706.44315262,0.00015588,2]
[395282830,1764588640115,-9074.70661917,0.00015626,2]
[395282832,1764588640127,-200.0,0.00015659,2]
[395282833,1764588640138,-4354.36365437,0.00015663,2]
[395282834,1764588640149,-166.66,0.00015744,2]
[395282835,1764588640160,-754.63,0.00015781,2]
[395282836,1764588640170,-9074.70661917,0.00015838,2]
[395282837,1764588640181,-500.0,0.00015849,2]
[395282839,1764588640190,-500.0,0.00015849,2]
[395282840,1764588640202,-500.0,0.00015849,2]
[395282841,1764588640214,-500.0,0.00015849,2]
[395282842,1764588640228,-500.0,0.00015849,2]
[395282843,1764588640239,-500.0,0.00015849,2]
[395282844,1764588640251,-500.0,0.00015849,2]
[395282845,1764588640265,-500.0,0.00015849,2]
[395282846,1764588640279,-500.0,0.00015849,2]
[395282847,1764588640291,-280.03542733,0.0001585,2]
[395282848,1764588640302,-500.0,0.0001585,2]
[395282849,1764588640314,-339.96710079,0.0001585,2]
[395282850,1764588640324,-500.0,0.0001585,2]
[395282851,1764588640335,-500.0,0.0001585,2]
[395282852,1764588640347,-500.0,0.0001585,2]
[395282853,1764588640359,-500.0,0.0001585,2]
[395282854,1764588640371,-500.0,0.0001585,2]
[395282855,1764588640382,-500.0,0.0001585,2]
[395282856,1764588640392,-500.0,0.0001585,2]
[395282857,1764588640402,-160.09973475,0.0001585,2]
[395282858,1764588640413,-500.0,0.0001585,2]
[395282859,1764588640424,-500.0,0.0001585,2]
[395282860,1764588640436,-500.0,0.0001585,2]
[395282861,1764588640447,-500.0,0.0001585,2]
[395282862,1764588640457,-500.0,0.0001585,2]
[395282863,1764588640467,-500.45943647,0.0001585,2]
[395282864,1764588640477,-500.0,0.0001585,2]
[395282865,1764588640489,-500.0,0.0001585,2]
[395282866,1764588640498,-500.0,0.0001585,2]
[395282867,1764588640507,-500.0,0.0001585,2]
[395282868,1764588640516,-500.0,0.0001585,2]
[395282869,1764588640525,-506.27683139,0.0001585,2]
[395282870,1764588640535,-500.0,0.0001585,2]
[395282871,1764588640545,-500.0,0.0001585,2]
[395282872,1764588640558,-500.0,0.0001585,2]
[395282873,1764588640569,-500.0,0.0001585,2]
[395282874,1764588640579,-500.0,0.0001585,2]
[395282875,1764588640588,-306.16890781,0.0001585,2]
[395282876,1764588640599,-332.16239915,0.0001585,2]
[395282877,1764588640609,-500.0,0.0001585,2]
[395282878,1764588640618,-500.0,0.0001585,2]
[395282879,1764588640629,-162.15790222,0.0001585,2]
[395282880,1764588640641,-500.0,0.0001585,2]
[395282881,1764588640651,-500.0,0.0001585,2]
[395282882,1764588640662,-500.0,0.0001585,2]
[395282883,1764588640671,-160.09225976,0.0001585,2]
[395282884,1764588640681,-500.0,0.0001585,2]
[395282885,1764588640691,-500.0,0.0001585,2]
[395282886,1764588640702,-501.27985406,0.0001585,2]
[395282887,1764588640713,-507.99167839,0.0001585,2]
[395282888,1764588640726,-500.0,0.0001585,2]
[395282889,1764588640736,-500.0,0.0001585,2]
[395282890,1764588640747,-500.2924213,0.0001585,2]
[395282891,1764588640758,-500.8147809,0.0001585,2]
[395282892,1764588640769,-160.18575084,0.0001585,2]
[395282893,1764588640780,-422.93496155,0.0001585,2]
[395282895,1764588640790,-373.31164474,0.0001585,2]
[395282896,1764588640802,-500.0,0.0001585,2]
[395282897,1764588640814,-160.0931227,0.0001585,2]
[395282898,1764588640824,-160.09781887,0.0001585,2]
[395282899,1764588640835,-500.0,0.0001585,2]
[395282900,1764588640846,-500.0,0.0001585,2]
[395282901,1764588640855,-500.0,0.0001585,2]
[395282902,1764588640865,-200.09019976,0.0001585,2]
[395282903,1764588640875,-500.0,0.0001585,2]
[395282904,1764588640886,-500.0,0.0001585,2]
[395282905,1764588640896,-4354.36365437,0.0001587,2]
[395282906,1764588640906,-200.0,0.00015889,2]
[395282907,1764588640916,-297.34550459,0.00015889,2]
[395282908,1764588640925,-1402.6474307,0.000159,2]
[395282909,1764588640936,-455.22305001,0.000159,2]
[395282910,1764588640946,-173.10639828,0.00015945,2]
[395282911,1764588640956,-1600.0,0.0001596,2]
[395282912,1764588640965,-6164.0,0.00015973,2]
[395282913,1764588640975,-619.33311978,0.00015994,2]
[395282914,1764588640986,-325.42872767,0.00015997,2]
[395282916,1764588640996,-151.0,0.00015997,2]
[395282918,1764588641006,-238.60108626,0.00015999,2]
[395282920,1764588641015,-500.0,0.00015999,2]
[395282921,1764588641025,-500.0,0.00015999,2]
[395282922,1764588641038,-500.0,0.00015999,2]
[395282923,1764588641048,-500.0,0.00015999,2]
[395282924,1764588641057,-500.0,0.00015999,2]
[395282925,1764588641066,-500.0,0.00015999,2]
[395282926,1764588641075,-500.0,0.00015999,2]
[395282927,1764588641085,-500.0,0.00015999,2]
[395282928,1764588641094,-428.02188527,0.00015999,2]
[395282929,1764588641103,-620.16,0.00015999,2]
[395282930,1764588641114,-11979.0,0.00016,2]
[395282931,1764588641123,-1125345.51425802,0.00016,2]
[395282932,1764588641132,-500.0,0.00016,2]
[395282933,1764588641141,-209017.58828939,0.00016,2]
[395282934,1764588641151,-151.0,0.00016,2]
[395282935,1764588641160,-169.058897,0.00016,2]
[395282936,1764588641169,-151.0,0.00016,2]
[395282937,1764588641179,-151.0,0.00016,2]
[395282938,1764588641188,-151.0,0.00016,2]
[395282939,1764588641197,-151.0,0.00016,2]
[395282940,1764588641206,-151.0,0.00016,2]
[395282941,1764588641215,-1275589.48232543,0.00016,4]
[395282942,1764588641327,-587.21395506,0.0001585,2]
[395282943,1764588641337,-500.0,0.0001585,2]
[395282944,1764588641347,-7314.02631191,0.00016,4]
[395282945,1764588641358,-16819.98374751,0.00016,4]
[395282946,1764588641370,-343.64171955,0.00016,4]
[395282947,1764588641382,-2463.33,0.00016,4]
[395282948,1764588641394,-5299.75401172,0.00016,4]
[395282949,1764588641416,-375.16859773,0.00016,4]
[395282950,1764588641429,-1307.24831174,0.00016,4]
[395282951,1764588641441,-256.96438985,0.00016,4]
[395282952,1764588641456,-691338.44734914,0.00016,4]
[395282953,1764588641466,-4176.36852277,0.00016,4]
[395282954,1764588641479,-24271.47300657,0.00016,4]
[395282955,1764588641491,-6655.54013537,0.00016,4]
[395282963,1764588644802,-360.42241858,0.00013967,2]
[395282965,1764588644812,-500.0,0.0001585,2]
[395282967,1764588644821,-164.17078125,0.000159,2]
[395282968,1764588644830,-233.71238193,0.00016,4]
[395282970,1764588644862,-3991.74966512,0.00016,4]
[395282971,1764588644967,-1137.79536712,0.00016,4]
[395282972,1764588645024,-590.81132555,0.00016,4]
[395282983,1764588646251,-500.0,0.0001585,2]
[395282984,1764588646262,-2025.18355,0.00016,4]
[395282985,1764588646363,-23916.42488506,0.00016,4]
[395282986,1764588646474,-818.76796578,0.00016,4]
[395282987,1764588646486,-271.0542,0.00016,4]
[395283006,1764588763319,-26.35601196,0.00042106,120]
[395283007,1764588763361,-1983.74,0.00042106,120]
[395283008,1764588763403,-531.286624,0.00042106,120]
[395283009,1764588763445,-808.36,0.00042106,120]
[395283010,1764588763486,-500.0,0.00042106,120]
[395283011,1764588763524,-1983.74,0.00042106,120]
[395283012,1764588763566,-1688.34,0.00042106,120]
[395283013,1764588763605,-808.36,0.00042106,120]
[395283014,1764588763645,-500.0,0.00042106,120]
[395283015,1764588763686,-1983.74,0.00042106,120]
[395283016,1764588763728,-1688.34,0.00042106,120]
[395283017,1764588763768,-808.38284808,0.00042106,120]
[395283018,1764588764248,-500.0,0.00042106,120]
[395283019,1764588764294,-500.0,0.00042106,120]
[395283020,1764588764336,-1983.74,0.00042106,120]
[395283021,1764588764382,-1688.34,0.00042106,120]
[395283022,1764588764424,-500.0,0.00042106,120]
[395283023,1764588764466,-500.0,0.00042106,120]
[395283024,1764588764507,-2171.61,0.00042106,120]
[395283025,1764588764546,-500.0,0.00042106,120]
[395283026,1764588764585,-1983.74,0.00042106,120]
[395283027,1764588764627,-1688.34,0.00042106,120]
[395283028,1764588764668,-500.0,0.00042106,120]
[395283029,1764588764713,-500.0,0.00042106,120]
[395283030,1764588764754,-2171.61,0.00042106,120]
[395283031,1764588764798,-500.0,0.00042106,120]
[395283032,1764588764842,-693.59,0.00042106,120]
[395283033,1764588764887,-1983.74,0.00042106,120]
[395283034,1764588764931,-1688.34,0.00042106,120]
[395283035,1764588764975,-500.0,0.00042106,120]
[395283036,1764588765018,-500.0,0.00042106,120]
[395283037,1764588765064,-500.0,0.00042106,120]
[395283038,1764588765118,-500.0,0.00042106,120]
[395283039,1764588765168,-2171.61,0.00042106,120]
[395283040,1764588765216,-1983.74,0.00042106,120]
[395283041,1764588765264,-693.59,0.00042106,120]
[395283042,1764588765311,-500.0,0.00042106,120]
[395283043,1764588765362,-500.0,0.00042106,120]